fUST/lending_fUST_20241221
["ID","MTS","AMOUNT","RATE_DAILY","PERIOD"]
[346117828,1734714641420,-502.79016131,0.00021917,6]
[346117829,1734714641430,-500.0,0.00021917,6]
[346117830,1734714641440,-1865.53,0.00021917,6]
[346117831,1734714641452,-500.0,0.00021917,6]
[346117832,1734714641465,-500.0,0.00021917,6]
[346117833,1734714641474,-151.0,0.00021917,2]
[346117834,1734714641484,-151.0,0.00021917,2]
[346117835,1734714641494,-151.0,0.00021917,2]
[346117836,1734714641503,-151.0,0.00021917,2]
[346117837,1734714641513,-500.0,0.00021917,6]
[346117838,1734714641523,-500.0,0.00021917,6]
[346117839,1734714641533,-500.0,0.00021917,6]
[346117840,1734714641543,-151.0,0.00021917,2]
[346117841,1734714641552,-151.0,0.00021917,2]
[346117842,1734714641562,-151.0,0.00021917,2]
[346117843,1734714641572,-151.0,0.00021917,2]
[346117844,1734714641582,-151.0,0.00021917,2]
[346117845,1734714641592,-457.96000079,0.00021917,6]
[346117846,1734714641602,-151.0,0.00021917,2]
[346117847,1734714641612,-151.0,0.00021917,2]
[346117848,1734714641622,-500.0,0.00021917,6]
[346117849,1734714641631,-500.0,0.00021917,6]
[346117850,1734714641641,-500.0,0.00021917,6]
[346117851,1734714641651,-500.0,0.00021917,6]
[346117852,1734714641661,-207.78833645,0.00021917,6]
[346117853,1734714641671,-151.0,0.00021917,2]
[346117854,1734714641680,-151.0,0.00021917,2]
[346117855,1734714641690,-500.0,0.00021917,6]
[346117856,1734714641699,-151.0,0.00021917,2]
[346117857,1734714641708,-500.0,0.00021917,6]
[346117858,1734714641717,-536.35004,0.00021917,2]
[346117859,1734714641727,-500.0,0.00021917,6]
[346117860,1734714641737,-536.35004,0.00021917,2]
[346117861,1734714641747,-949.94,0.00021917,6]
[346117862,1734714641757,-536.35004,0.00021917,2]
[346117863,1734714641766,-151.0,0.00021917,2]
[346117864,1734714641776,-536.35004,0.00021917,2]
[346117865,1734714641785,-151.0,0.00021917,2]
[346117866,1734714641795,-151.0,0.00021917,2]
[346117867,1734714641804,-151.0,0.00021917,2]
[346117868,1734714641814,-536.35004,0.00021917,2]
[346117869,1734714641824,-151.0,0.00021917,2]
[346117870,1734714641833,-536.35004,0.00021917,2]
[346117871,1734714641842,-151.0,0.00021917,2]
[346117872,1734714641851,-536.35004,0.00021917,2]
[346117873,1734714641861,-151.0,0.00021917,2]
[346117874,1734714641870,-536.35004,0.00021917,2]
[346117875,1734714641879,-500.0,0.00021917,6]
[346117876,1734714641889,-464.108438,0.00021917,2]
[346117877,1734714641899,-464.108438,0.00021917,2]
[346117878,1734714641908,-464.108438,0.00021917,2]
[346117879,1734714641918,-464.108438,0.00021917,2]
[346117880,1734714641928,-500.0,0.00021917,6]
[346117881,1734714641938,-2310.88,0.00021917,6]
[346117882,1734714641947,-500.0,0.00021917,6]
[346117883,1734714641957,-1445.38,0.00021917,6]
[346117884,1734714641966,-151.0,0.00021917,2]
[346117885,1734714641976,-464.108438,0.00021917,2]
[346117886,1734714641985,-151.0,0.00021917,2]
[346117887,1734714641994,-464.108438,0.00021917,2]
[346117888,1734714642003,-464.108438,0.00021917,2]
[346117889,1734714642012,-464.108438,0.00021917,2]
[346117890,1734714642021,-500.0,0.00021917,6]
[346117891,1734714642030,-500.0,0.00021917,6]
[346117892,1734714642040,-500.0,0.00021917,6]
[346117893,1734714642049,-500.0,0.00021917,6]
[346117894,1734714642058,-500.0,0.00021917,6]
[346117895,1734714642068,-1088.01,0.00021917,6]
[346117896,1734714642077,-1087.09,0.00021917,6]
[346117897,1734714642086,-151.0,0.00021917,2]
[346117898,1734714642095,-222.65776,0.00021917,2]
[346117899,1734714642106,-1210.37,0.00021917,6]
[346117900,1734714642115,-500.0,0.00021917,6]
[346117901,1734714642124,-331.86691342,0.00021917,6]
[346117902,1734714642134,-500.0,0.00021917,6]
[346117903,1734714642143,-500.0,0.00021917,6]
[346117904,1734714642152,-500.0,0.00021917,6]
[346117905,1734714642161,-502.76434455,0.00021917,6]
[346117906,1734714642171,-179.861496,0.00021917,2]
[346117907,1734714642181,-179.861496,0.00021917,2]
[346117908,1734714642190,-179.861496,0.00021917,2]
[346117909,1734714642200,-500.0,0.00021917,6]
[346117910,1734714642210,-179.861496,0.00021917,2]
[346117911,1734714642219,-500.0,0.00021917,6]
[346117912,1734714642230,-179.861496,0.00021917,2]
[346117913,1734714642239,-179.861496,0.00021917,2]
[346117914,1734714642249,-500.0,0.00021917,6]
[346117915,1734714642258,-500.0,0.00021917,6]
[346117916,1734714642268,-547.75,0.00021917,6]
[346117917,1734714642277,-500.0,0.00021917,6]
[346117918,1734714642288,-500.0,0.00021917,6]
[346117919,1734714642298,-500.0,0.00021917,6]
[346117920,1734714642307,-500.0,0.00021917,6]
[346117921,1734714642316,-500.0,0.00021917,6]
[346117922,1734714642326,-500.0,0.00021917,6]
[346117923,1734714642335,-500.0,0.00021917,6]
[346117924,1734714642344,-500.0,0.00021917,6]
[346117925,1734714642354,-1367.24,0.00021917,6]
[346117926,1734714642363,-500.0,0.00021917,6]
[346117927,1734714642372,-500.0,0.00021917,6]
[346117928,1734714642381,-500.0,0.00021917,6]
[346117929,1734714642390,-477.486177,0.00021917,6]
[346117930,1734714642399,-718.23,0.00021917,6]
[346117931,1734714642409,-500.0,0.00021917,6]
[346117932,1734714642419,-500.0,0.00021917,6]
[346117933,1734714642428,-500.0,0.00021917,6]
[346117934,1734714642439,-500.0,0.00021917,6]
[346117935,1734714642448,-62946.13,0.00021917,6]
[346117936,1734714642458,-1171.83,0.00021917,6]
[346117937,1734714642469,-500.0,0.00021917,6]
[346117938,1734714642479,-13719.29,0.00021917,6]
[346117939,1734714642488,-500.0,0.00021917,6]
[346117940,1734714642498,-500.0,0.00021917,6]
[346117941,1734714642508,-500.0,0.00021917,6]
[346117942,1734714642517,-500.0,0.00021917,6]
[346117944,1734714642526,-500.0,0.00021917,6]
[346117945,1734714642536,-4886.16,0.00021917,6]
[346117946,1734714642545,-500.0,0.00021917,6]
[346117947,1734714642556,-500.0,0.00021917,6]
[346117948,1734714642566,-1283.688362,0.00021917,2]
[346117949,1734714642575,-1283.688362,0.00021917,2]
[346117950,1734714642584,-1283.688362,0.00021917,2]
[346117951,1734714642594,-500.0,0.00021917,6]
[346117952,1734714642603,-500.0,0.00021917,6]
[346117953,1734714642613,-782.69,0.00021917,6]
[346117954,1734714642622,-2038.33,0.00021917,6]
[346117955,1734714642631,-151.0,0.00021917,2]
[346117956,1734714642641,-1283.688362,0.00021917,2]
[346117957,1734714642650,-151.0,0.00021917,2]
[346117958,1734714642659,-1283.688362,0.00021917,2]
[346117960,1734714642668,-151.0,0.00021917,2]
[346117962,1734714642678,-151.0,0.00021917,2]
[346117963,1734714642687,-145.99749388,0.00021917,2]
[346117974,1734714642915,-1137.69086812,0.00021917,2]
[346117975,1734714642924,-500.0,0.00021917,6]
[346117976,1734714642934,-2637.74,0.00021917,6]
[346117977,1734714642943,-12492.80913188,0.00021917,6]
[346117978,1734714642954,-965.4,0.00021917,6]
[346117979,1734714642966,-1401.00747317,0.00021917,6]
[346117980,1734714642977,-537.68339495,0.00021917,6]
[346117981,1734714642987,-500.0,0.00021917,6]
[346117982,1734714642997,-500.0,0.00021917,6]
[346117984,1734714643007,-500.0,0.00021917,6]
[346117986,1734714643017,-2134.03,0.00021917,6]
[346117987,1734714643027,-345.91557391,0.00021917,6]
[346117988,1734714643036,-715.78,0.00021917,6]
[346117989,1734714643046,-500.0,0.00021917,6]
[346117990,1734714643054,-2028.07,0.00021917,6]
[346117991,1734714643064,-500.0,0.00021917,6]
[346117992,1734714643073,-500.0,0.00021917,6]
[346117993,1734714643082,-500.0,0.00021917,6]
[346117994,1734714643092,-564.51,0.00021917,6]
[346117995,1734714643101,-266.191625,0.00021917,2]
[346117996,1734714643226,-257.81940614,0.00021917,6]
[346117997,1734714643238,-242.18059386,0.00021917,6]
[346117998,1734714643248,-266.191625,0.00021917,2]
[346117999,1734714643259,-266.191625,0.00021917,2]
[346118000,1734714643269,-500.0,0.00021917,6]
[346118001,1734714643278,-266.191625,0.00021917,2]
[346118002,1734714643289,-213.604878,0.00021917,2]
[346118003,1734714643299,-213.604878,0.00021917,2]
[346118004,1734714643309,-369.53477514,0.00021917,6]
[346118005,1734714643325,-7705.47522486,0.00021917,6]
[346118006,1734714643338,-213.604878,0.00021917,2]
[346118007,1734714643347,-213.604878,0.00021917,2]
[346118008,1734714643356,-435.76886045,0.00021917,6]
[346118009,1734714643366,-500.0,0.00021917,6]
[346118010,1734714643374,-266.191625,0.00021917,2]
[346118011,1734714643383,-266.191625,0.00021917,2]
[346118012,1734714643392,-500.0,0.00021917,6]
[346118013,1734714643402,-266.191625,0.00021917,2]
[346118014,1734714643411,-266.191625,0.00021917,2]
[346118015,1734714643420,-500.0,0.00021917,6]
[346118016,1734714643429,-510.63690673,0.00021917,6]
[346118017,1734714643438,-213.604878,0.00021917,2]
[346118018,1734714643447,-213.604878,0.00021917,2]
[346118019,1734714643456,-213.604878,0.00021917,2]
[346118020,1734714643465,-213.604878,0.00021917,2]
[346118021,1734714643475,-500.0,0.00021917,6]
[346118022,1734714643484,-500.0,0.00021917,6]
[346118023,1734714643493,-500.0,0.00021917,6]
[346118024,1734714643502,-500.0,0.00021917,6]
[346118026,1734714643511,-500.0,0.00021917,6]
[346118028,1734714643521,-500.0,0.00021917,6]
[346118029,1734714643529,-500.0,0.00021917,6]
[346118030,1734714643538,-500.0,0.00021917,6]
[346118031,1734714643548,-711.79,0.00021917,6]
[346118032,1734714643557,-327.13503325,0.00021917,6]
[346118033,1734714643567,-500.0,0.00021917,6]
[346118034,1734714643576,-500.0,0.00021917,6]
[346118035,1734714643586,-500.0,0.00021917,6]
[346118036,1734714643595,-500.0,0.00021917,6]
[346118037,1734714643605,-500.0,0.00021917,6]
[346118038,1734714643614,-500.0,0.00021917,6]
[346118039,1734714643624,-4623.22,0.00021917,6]
[346118040,1734714643634,-217.804067,0.00021917,2]
[346118041,1734714643643,-151.0,0.00021917,2]
[346118042,1734714643653,-217.804067,0.00021917,2]
[346118043,1734714643662,-182.415833,0.00021917,2]
[346118044,1734714643671,-217.804067,0.00021917,2]
[346118045,1734714643680,-217.804067,0.00021917,2]
[346118046,1734714643689,-217.804067,0.00021917,2]
[346118047,1734714643699,-217.804067,0.00021917,2]
[346118048,1734714643708,-217.804067,0.00021917,2]
[346118049,1734714643717,-217.804067,0.00021917,2]
[346118050,1734714643727,-500.0,0.00021917,6]
[346118051,1734714643736,-647.38,0.00021917,6]
[346118052,1734714643746,-500.0,0.00021917,6]
[346118053,1734714643755,-500.0,0.00021917,6]
[346118054,1734714643765,-500.0,0.00021917,6]
[346118055,1734714643774,-500.0,0.00021917,6]
[346118056,1734714643783,-500.0,0.00021917,6]
[346118057,1734714643793,-900.72,0.00021917,6]
[346118058,1734714643803,-151.0,0.00021917,2]
[346118059,1734714643812,-208.411036,0.00021917,2]
[346118060,1734714643822,-151.0,0.00021917,2]
[346118061,1734714643832,-265.198311,0.00021917,2]
[346118062,1734714643841,-151.0,0.00021917,2]
[346118063,1734714643851,-151.0,0.00021917,2]
[346118064,1734714643860,-500.0,0.00021917,6]
[346118065,1734714643869,-151.0,0.00021917,2]
[346118066,1734714643879,-707.36,0.00021917,6]
[346118067,1734714643889,-151.0,0.00021917,2]
[346118068,1734714643899,-500.0,0.00021917,6]
[346118069,1734714643909,-500.0,0.00021917,6]
[346118070,1734714643919,-2377.42,0.00021917,2]
[346118071,1734714643928,-550.08129052,0.00021917,6]
[346118072,1734714643946,-881.05,0.00021917,6]
[346118073,1734714644586,-1067.16870948,0.00021917,6]
[346118074,1734714644597,-500.0,0.00021917,6]
[346118075,1734714644607,-636.93695156,0.00021917,6]
[346118076,1734714644617,-1702.3,0.00021917,6]
[346118077,1734714644626,-500.0,0.00021917,6]
[346118078,1734714644635,-500.0,0.00021917,6]
[346118079,1734714644644,-500.0,0.00021917,6]
[346118080,1734714644654,-149.82159429,0.00021917,6]
[346118081,1734714644679,-449.03840571,0.00021917,6]
[346118082,1734714644689,-1993.6,0.00021917,2]
[346118083,1734714644698,-500.0,0.00021917,6]
[346118084,1734714644708,-500.0,0.00021917,6]
[346118085,1734714644717,-483.09680624,0.00021917,6]
[346119172,1734715458229,229.716925,0.00013973,2]
[346119175,1734715494167,76881.0,0.00025,60]
[346119177,1734715546134,-670.55782385,0.00019475,2]
[346119178,1734715547099,-32.10064056,0.00019475,2]
[346119179,1734715547119,-935.28079575,0.00019672,2]
[346119180,1734715579648,1000.0,0.00025,60]
[346119181,1734715634088,-3673.92332093,0.00019475,2]
[346119182,1734715640095,-1326.07667907,0.00019475,2]
[346119183,1734715640119,-2072.45508371,0.00020433,2]
[346119184,1734715640142,-229.716925,0.00020447,2]
[346119185,1734715640164,-38.39833351,0.00020553,2]
[346119186,1734715651195,-258.57098549,0.00020553,2]
[346119187,1734715651218,-417.5739275,0.00020683,2]
[346119188,1734715651241,-513.648,0.0002082,2]
[346119189,1734715651262,-391.0670597,0.00021,2]
[346119190,1734715706310,7081.18835081,0.00025,60]
[346119216,1734715832497,-5000.0,0.00020348,2]
[346119217,1734715832507,-492.36,0.0002082,2]
[346119218,1734715832518,-772.0945083,0.00021,2]
[346119219,1734715832530,-151.50502773,0.00021461,2]
[346119220,1734715832540,-300.0,0.00021599,2]
[346119221,1734715832551,-300.0,0.00021599,2]
[346119222,1734715832561,-2000.0,0.000216,2]
[346119223,1734715832571,-2286.78420529,0.000216,4]
[346119224,1734715832581,-153.2926313,0.000216,2]
[346119225,1734715832591,-214.0101375,0.000216,2]
[346119226,1734715832602,-500.0,0.00021799,2]
[346119227,1734715832612,-608.84051616,0.00021799,2]
[346119228,1734715832622,-500.0,0.00021799,2]
[346119229,1734715832631,-500.0,0.00021799,2]
[346119230,1734715832641,-500.0,0.00021799,2]
[346119231,1734715832650,-500.0,0.00021799,2]
[346119232,1734715832660,-500.0,0.00021799,2]
[346119233,1734715832670,-500.0,0.00021799,2]
[346119234,1734715832680,-500.0,0.00021799,2]
[346119235,1734715832689,-439.15824613,0.00021799,2]
[346119236,1734715832699,-500.0,0.00021799,2]
[346119237,1734715832712,-396.78334591,0.00021799,2]
[346119238,1734715832722,-500.0,0.00021799,2]
[346119239,1734715832732,-500.0,0.00021799,2]
[346119240,1734715832741,-500.0,0.00021799,2]
[346119241,1734715832751,-463.58878941,0.00021799,2]
[346119242,1734715832761,-500.0,0.00021799,2]
[346119243,1734715832771,-500.0,0.00021799,2]
[346119244,1734715832780,-500.0,0.00021799,2]
[346119245,1734715832790,-535.11945293,0.00021799,2]
[346119246,1734715832799,-500.0,0.00021799,2]
[346119247,1734715832808,-500.0,0.00021799,2]
[346119248,1734715832817,-500.0,0.00021799,2]
[346119249,1734715832826,-500.0,0.00021799,2]
[346119250,1734715832836,-500.0,0.00021799,2]
[346119251,1734715832845,-500.0,0.00021799,2]
[346119252,1734715832855,-500.0,0.00021799,2]
[346119253,1734715832864,-500.0,0.00021799,2]
[346119254,1734715832873,-500.0,0.00021799,2]
[346119255,1734715832882,-500.0,0.00021799,2]
[346119256,1734715832891,-500.0,0.00021799,2]
[346119257,1734715832900,-500.0,0.00021799,2]
[346119258,1734715832909,-153.2926313,0.000218,2]
[346119259,1734715832918,-11755.62421938,0.000218,2]
[346119260,1734715832934,-3025.69033633,0.000218,2]
[346119266,1734715838573,-5000.0,0.00021582,2]
[346119267,1734715838584,-15693.31318014,0.000218,2]
[346119270,1734715840499,-535.77515254,0.000218,2]
[346119271,1734715840618,-1347.2624374,0.000218,2]
[346119287,1734715843660,-4725.07109883,0.000218,2]
[346119301,1734715846450,-81848.06919479,0.000218,2]
[346119302,1734715846462,-779.40069698,0.000218,2]
[346119303,1734715846476,-1619.358304,0.000218,2]
[346119306,1734716554876,222.642842,0.00013973,2]
[346119308,1734716742146,-992.09912118,0.0002,2]
[346119309,1734716756152,-1992.62082714,0.0002,2]
[346119310,1734716830084,-2084.94066791,0.000198,2]
[346119311,1734716830106,-222.642842,0.00020447,2]
[346119312,1734716830129,-355.5,0.00020792,2]
[346119313,1734716830152,-498.358,0.0002082,2]
[346119314,1734716830172,-181.24938135,0.00021564,2]
[346119315,1734716830196,-300.0,0.00021641,2]
[346119316,1734716830217,-9434.85829172,0.00021642,2]
[346119317,1734716845147,-565.06016399,0.00021642,2]
[346119318,1734716845169,-1000.0,0.00021664,2]
[346119319,1734716845191,-206.7114874,0.00021697,2]
[346119320,1734716845342,-1000.0,0.00021706,2]
[346119321,1734716845366,-1004.70566299,0.00021717,2]
[346119322,1734716845388,-5869.34458322,0.000218,2]
[346119323,1734716847083,-1526.55371981,0.000218,2]
[346119356,1734717032714,-206.7114874,0.00021697,2]
[346119358,1734717032724,-300.0,0.00021799,2]
[346119360,1734717032733,-129.08558611,0.00021799,2]
[346119365,1734717032774,-170.91441389,0.00021799,2]
[346119367,1734717032783,-7180.19084741,0.000218,2]
[346119374,1734717032836,-2047.26200316,0.000218,2]
[346119376,1734717032847,-2860.48558844,0.000218,2]
[346119383,1734717032903,-738.20142119,0.000218,2]
[346119385,1734717032916,-656.32807443,0.000218,2]
[346119409,1734717038510,-318.16934035,0.000218,2]
[346119416,1734717038575,-5811.20679158,0.000218,2]
[346119437,1734717039138,-829.46857666,0.000218,2]
[346119438,1734717039148,-666.0,0.00021817,2]
[346119439,1734717039158,-1209.9655556,0.00021817,2]
[346119440,1734717039167,-1209.9655556,0.00021886,2]
[346119441,1734717039177,-551.50986549,0.00021899,2]
[346119442,1734717039187,-155.19814955,0.00021899,2]
[346119443,1734717039196,-257.33341576,0.00021899,2]
[346119444,1734717039206,-500.0,0.00021899,2]
[346119445,1734717039215,-227.73570322,0.00021899,2]
[346119446,1734717039225,-245.26564742,0.00021899,2]
[346119447,1734717039235,-500.0,0.00021899,2]
[346119448,1734717039245,-500.0,0.00021899,2]
[346119449,1734717039255,-500.0,0.00021899,2]
[346119450,1734717039265,-516.63783475,0.00021899,2]
[346119451,1734717039274,-5357.55212379,0.000219,2]
[346119453,1734717040628,-169.61707998,0.000219,2]
[346119454,1734717040640,-68519.93021949,0.000219,2]
[346119455,1734717040655,-7743.65468144,0.000219,2]
[346119482,1734717043592,-698.26888315,0.000219,2]
[346119483,1734717043668,-480.42175838,0.000219,2]
[346119528,1734717046709,-500.0,0.00021899,2]
[346119530,1734717046719,-174.53210389,0.00021899,2]
[346119532,1734717046728,-500.0,0.00021899,2]
[346119534,1734717046738,-500.0,0.00021899,2]
[346119536,1734717046747,-500.0,0.00021899,2]
[346119538,1734717046756,-352.09548887,0.00021899,2]
[346119540,1734717046766,-294.06132696,0.00021899,2]
[346119542,1734717046775,-648.92027861,0.00021899,2]
[346119544,1734717046785,-46772.92940723,0.000219,2]
[346119546,1734717046795,-15257.78768746,0.000219,2]
[346119548,1734717046804,-29004.74135998,0.000219,2]
[346120078,1734717499503,216.134177,0.00013973,2]
[346120079,1734717933110,-1319.06113549,0.00020243,2]
[346120080,1734717958107,-720.50599464,0.00020243,2]
[346120081,1734717958127,-546.13881566,0.00020276,2]
[346120082,1734718037093,-5000.0,0.00020074,2]
[346120083,1734718037114,-689.99730514,0.00020276,2]
[346120084,1734718037136,-216.134177,0.00020447,2]
[346120085,1734718037157,-191.745194,0.00020471,2]
[346120086,1734718037182,-1454.9896049,0.00020748,11]
[346120087,1734718049123,-670.0503047,0.00020748,11]
[346120088,1734718049145,-672.205567,0.00020748,2]
[346120089,1734718049167,-300.0,0.00020854,2]
[346120090,1734718049190,-300.0,0.00020854,2]
[346120091,1734718049212,-6577.52140108,0.00020856,2]
[346120143,1734718232832,-610.97286328,0.00020715,2]
[346120144,1734718232856,-1514.06704627,0.00020715,2]
[346120194,1734718240716,-1994.60357077,0.00020715,2]
[346120296,1734718246821,-401.44315808,0.00020715,2]
[346120297,1734718246832,-509.297,0.0002082,2]
[346120299,1734718246842,-1000.0,0.00021,21]
[346120301,1734718246851,-351.49126,0.00021041,2]
[346120303,1734718246861,-352.02932,0.00021147,2]
[346120305,1734718246870,-352.02932,0.00021147,2]
[346120307,1734718246880,-774.87473236,0.0002176,2]
[346120309,1734718246890,-300.0,0.00021799,2]
[346120310,1734718246899,-2634.47002655,0.000218,2]
[346120312,1734718246909,-3000.0,0.000218,2]
[346120314,1734718246918,-352.02932,0.000218,2]
[346120316,1734718246928,-352.02932,0.000218,2]
[346120318,1734718246937,-352.02932,0.000218,2]
[346120320,1734718246946,-3000.0,0.0002181,2]
[346120321,1734718246955,-666.0,0.00021817,2]
[346120323,1734718246964,-1321.96852328,0.00021817,2]
[346120325,1734718246975,-3000.0,0.0002182,2]
[346120327,1734718246985,-205.854,0.0002182,2]
[346120329,1734718246995,-3000.0,0.0002183,2]
[346120331,1734718247004,-3000.0,0.0002184,2]
[346120333,1734718247013,-3000.0,0.0002185,2]
[346120335,1734718247023,-3000.0,0.0002186,2]
[346120337,1734718247032,-3000.0,0.0002187,2]
[346120338,1734718247041,-3000.0,0.0002188,2]
[346120340,1734718247050,-3000.0,0.0002189,2]
[346120342,1734718247060,-183.21336429,0.00021899,2]
[346120344,1734718247069,-139470.97033512,0.000219,2]
[346120346,1734718247078,-3000.0,0.000219,2]
[346120348,1734718247088,-351.6405177,0.000219,2]
[346120349,1734718247097,-352.02932,0.000219,2]
[346120351,1734718247107,-555.0,0.000219,9]
[346120353,1734718247115,-159.41499225,0.00021908,2]
[346120355,1734718247125,-171.68595319,0.00021908,2]
[346120357,1734718247134,-500.0,0.00021908,2]
[346120359,1734718247143,-500.0,0.00021908,2]
[346120361,1734718247151,-411.64648433,0.00021908,2]
[346120363,1734718247161,-3000.0,0.0002191,2]
[346120365,1734718247172,-202.48843904,0.00021916,2]
[346120367,1734718247182,-315.28444541,0.00021916,2]
[346120369,1734718247191,-65599.56367765,0.00021917,2]
[346120370,1734718247200,-7628.89384374,0.00021917,2]
[346120372,1734718247209,-500.0,0.00021917,2]
[346120374,1734718247218,-509.34422276,0.00021917,2]
[346120376,1734718247228,-500.0,0.00021917,2]
[346120378,1734718247239,-201.08838092,0.00021917,2]
[346120380,1734718247247,-151.0,0.00021917,2]
[346120382,1734718247256,-151.0,0.00021917,2]
[346120384,1734718247265,-180.79259,0.00021917,2]
[346120386,1734718247274,-500.0,0.00021917,6]
[346120388,1734718247283,-151.0,0.00021917,2]
[346120390,1734718247293,-151.0,0.00021917,2]
[346120391,1734718247305,-151.0,0.00021917,2]
[346120393,1734718247314,-151.0,0.00021917,2]
[346120395,1734718247324,-151.0,0.00021917,2]
[346120397,1734718247334,-298.258529,0.00021917,2]
[346120399,1734718247345,-502.27698611,0.00021917,6]
[346120401,1734718247354,-151.0,0.00021917,2]
[346120402,1734718247364,-151.0,0.00021917,2]
[346120404,1734718247374,-151.0,0.00021917,2]
[346120406,1734718247384,-502.31632052,0.00021917,6]
[346120408,1734718247393,-151.0,0.00021917,2]
[346120410,1734718247402,-151.0,0.00021917,2]
[346120412,1734718247411,-252.958266,0.00021917,2]
[346120414,1734718247421,-500.0,0.00021917,6]
[346120416,1734718247430,-151.0,0.00021917,2]
[346120419,1734718247451,-789.19,0.00021917,6]
[346120421,1734718247460,-151.0,0.00021917,2]
[346120423,1734718247470,-151.0,0.00021917,2]
[346120425,1734718247480,-151.0,0.00021917,2]
[346120427,1734718247490,-151.0,0.00021917,2]
[346120429,1734718247500,-151.0,0.00021917,2]
[346120430,1734718247511,-151.0,0.00021917,2]
[346120432,1734718247520,-151.0,0.00021917,2]
[346120434,1734718247530,-151.0,0.00021917,2]
[346120436,1734718247539,-151.0,0.00021917,2]
[346120438,1734718247549,-151.0,0.00021917,2]
[346120440,1734718247559,-151.0,0.00021917,2]
[346120442,1734718247569,-151.0,0.00021917,2]
[346120444,1734718247582,-151.0,0.00021917,2]
[346120446,1734718247591,-197.6488,0.00021917,2]
[346120447,1734718247601,-500.0,0.00021917,6]
[346120449,1734718247611,-500.0,0.00021917,6]
[346120451,1734718247624,-522.44487731,0.00021917,6]
[346120453,1734718247634,-500.0,0.00021917,6]
[346120455,1734718247644,-500.0,0.00021917,6]
[346120457,1734718247654,-500.0,0.00021917,6]
[346120459,1734718247663,-500.0,0.00021917,6]
[346120461,1734718247673,-500.0,0.00021917,6]
[346120463,1734718247683,-500.0,0.00021917,6]
[346120465,1734718247692,-500.0,0.00021917,6]
[346120467,1734718247702,-500.0,0.00021917,6]
[346120469,1734718247711,-500.0,0.00021917,6]
[346120471,1734718247721,-500.0,0.00021917,6]
[346120473,1734718247730,-500.0,0.00021917,6]
[346120475,1734718247740,-500.0,0.00021917,6]
[346120477,1734718247750,-500.0,0.00021917,6]
[346120479,1734718247761,-151.0,0.00021917,2]
[346120481,1734718247770,-151.0,0.00021917,2]
[346120483,1734718247780,-151.0,0.00021917,2]
[346120485,1734718247790,-151.0,0.00021917,2]
[346120487,1734718247799,-151.0,0.00021917,2]
[346120488,1734718247809,-151.0,0.00021917,2]
[346120490,1734718247819,-151.0,0.00021917,2]
[346120492,1734718247829,-151.0,0.00021917,2]
[346120494,1734718247841,-500.0,0.00021917,6]
[346120496,1734718247850,-500.0,0.00021917,6]
[346120498,1734718247860,-151.0,0.00021917,2]
[346120500,1734718247870,-500.0,0.00021917,6]
[346120502,1734718247879,-151.0,0.00021917,2]
[346120504,1734718247889,-151.0,0.00021917,2]
[346120506,1734718247900,-151.0,0.00021917,2]
[346120508,1734718247909,-151.0,0.00021917,2]
[346120510,1734718247919,-253.060954,0.00021917,2]
[346120511,1734718247929,-500.0,0.00021917,6]